[Event "NJSK 2026 Jeugd C"]
[Site "Helmond, Netherlands"]
[Date "2026.05.01"]
[Round "9.7"]
[White "Gupta, Akul"]
[Black "Lenting, Roan"]
[Result "1-0"]
[TimeControl "90min/40moves + 30sec/move"]
[WhiteTitle "-"]
[BlackTitle "-"]
[WhiteFideId "1084194"]
[BlackFideId "1085905"]
[WhiteElo "2017"]
[BlackElo "1986"]

1. d4 {[%clk 01:30:54]} {[%emt 00:00:05]} Nf6 {[%clk 01:30:56]} {[%emt
00:00:04]} 2. Nc3 {[%clk 01:31:19]} {[%emt 00:00:05]} d5 {[%clk 01:31:24]}
{[%emt 00:00:03]} 3. Bf4 {[%clk 01:31:40]} {[%emt 00:00:07]} Bd7 {[%clk
01:31:50]} {[%emt 00:00:05]} 4. Nf3 {[%clk 01:28:45]} {[%emt 00:03:24]} e6
{[%clk 01:32:16]} {[%emt 00:00:05]} 5. a3 {[%clk 01:28:56]} {[%emt 00:00:20]}
a6 {[%clk 01:32:31]} {[%emt 00:00:14]} 6. e3 {[%clk 01:28:53]} {[%emt
00:00:32]} c5 {[%clk 01:32:51]} {[%emt 00:00:11]} 7. Ne5 {[%clk 01:23:08]}
{[%emt 00:06:15]} Nc6 {[%clk 01:31:46]} {[%emt 00:01:35]} 8. Rb1 {[%clk
01:21:24]} {[%emt 00:02:14]} cxd4 {[%clk 01:31:14]} {[%emt 00:01:02]} 9. exd4
{[%clk 01:21:47]} {[%emt 00:00:07]} Qb6 {[%clk 01:28:32]} {[%emt 00:03:12]} 10.
Nxc6 {[%clk 01:22:09]} {[%emt 00:00:09]} bxc6 {[%clk 01:28:41]} {[%emt
00:00:21]} 11. b4 {[%clk 01:22:32]} {[%emt 00:00:07]} a5 {[%clk 01:18:48]}
{[%emt 00:10:23]} 12. b5 {[%clk 01:19:09]} {[%emt 00:03:52]} Bxa3 {[%clk
01:09:00]} {[%emt 00:10:18]} 13. Na4 {[%clk 01:19:34]} {[%emt 00:00:05]} Qa7
{[%clk 01:01:41]} {[%emt 00:07:49]} 14. b6 {[%clk 01:19:58]} {[%emt 00:00:06]}
Qb7 {[%clk 01:02:05]} {[%emt 00:00:06]} 15. Nc5 {[%clk 01:20:23]} {[%emt
00:00:05]} Bxc5 {[%clk 01:02:30]} {[%emt 00:00:06]} 16. dxc5 {[%clk 01:20:47]}
{[%emt 00:00:05]} O-O {[%clk 01:01:11]} {[%emt 00:01:49]} 17. Bd3 {[%clk
01:21:12]} {[%emt 00:00:05]} e5 {[%clk 00:59:15]} {[%emt 00:02:27]} 18. Bg5
{[%clk 01:16:12]} {[%emt 00:05:28]} Ne4 {[%clk 00:57:47]} {[%emt 00:01:59]} 19.
Bxe4 {[%clk 01:16:15]} {[%emt 00:00:27]} dxe4 {[%clk 00:58:15]} {[%emt
00:00:02]} 20. Be7 {[%clk 01:15:54]} {[%emt 00:00:51]} Rfe8 {[%clk 00:58:20]}
{[%emt 00:00:26]} 21. Bd6 {[%clk 01:16:15]} {[%emt 00:00:08]} a4 {[%clk
00:57:53]} {[%emt 00:00:57]} 22. O-O {[%clk 01:12:06]} {[%emt 00:04:39]} f6
{[%clk 00:52:52]} {[%emt 00:05:31]} 23. c4 {[%clk 01:03:54]} {[%emt 00:08:42]}
e3 {[%clk 00:41:36]} {[%emt 00:11:47]} 24. fxe3 {[%clk 01:02:25]} {[%emt
00:01:58]} Bc8 {[%clk 00:38:26]} {[%emt 00:03:39]} 25. Ra1 {[%clk 00:55:18]}
{[%emt 00:07:37]} Qa6 {[%clk 00:37:51]} {[%emt 00:01:06]} 26. Qc2 {[%clk
00:54:43]} {[%emt 00:01:04]} Bb7 {[%clk 00:32:04]} {[%emt 00:06:18]} 27. Ra3
{[%clk 00:53:21]} {[%emt 00:01:52]} Qa5 {[%clk 00:31:13]} {[%emt 00:01:21]} 28.
Rfa1 {[%clk 00:53:43]} {[%emt 00:00:08]} Qb4 {[%clk 00:31:06]} {[%emt
00:00:37]} 29. Kf2 {[%clk 00:53:58]} {[%emt 00:00:15]} Ra6 {[%clk 00:29:11]}
{[%emt 00:02:25]} 30. Rxa4 {[%clk 00:53:45]} {[%emt 00:00:43]} Rea8 {[%clk
00:29:35]} {[%emt 00:00:06]} 31. Rxb4 {[%clk 00:52:36]} {[%emt 00:01:39]} Rxa1
{[%clk 00:30:02]} {[%emt 00:00:04]} 32. Rb2 {[%clk 00:53:00]} {[%emt 00:00:06]}
g6 {[%clk 00:30:00]} {[%emt 00:00:32]} 33. Bc7 {[%clk 00:53:06]} {[%emt
00:00:25]} Kf7 {[%clk 00:28:23]} {[%emt 00:02:06]} 34. Qd2 {[%clk 00:53:31]}
{[%emt 00:00:05]} Bc8 {[%clk 00:28:38]} {[%emt 00:00:15]} 35. b7 {[%clk
00:53:42]} {[%emt 00:00:20]} Bxb7 {[%clk 00:29:01]} {[%emt 00:00:07]} 36. Rxb7
{[%clk 00:54:07]} {[%emt 00:00:06]} R8a2 {[%clk 00:29:21]} {[%emt 00:00:08]} 37.
Rb2 {[%clk 00:54:32]} {[%emt 00:00:05]} 1-0

[Event "NJSK 2026 Jeugd C"]
[Site "Helmond, Netherlands"]
[Date "2026.05.01"]
[Round "9.8"]
[White "Uitermark, Imre"]
[Black "Blok, Lukas"]
[Result "1/2-1/2"]
[TimeControl "90min/40moves + 30sec/move"]
[WhiteTitle "-"]
[BlackTitle "-"]
[WhiteFideId "40105199"]
[BlackFideId "40110494"]
[WhiteElo "1957"]
[BlackElo "1991"]

1. e4 {[%clk 01:30:59]} d6 {[%clk 01:30:53]} {[%emt 00:00:07]} 2. d4 {[%clk
01:31:13]} {[%emt 00:00:16]} Nf6 {[%clk 01:31:18]} {[%emt 00:00:05]} 3. Nc3
{[%clk 01:31:39]} {[%emt 00:00:04]} g6 {[%clk 01:31:43]} {[%emt 00:00:04]} 4.
Be3 {[%clk 01:32:01]} {[%emt 00:00:09]} c6 {[%clk 01:32:10]} {[%emt 00:00:04]}
5. a4 {[%clk 01:32:17]} {[%emt 00:00:14]} a5 {[%clk 01:23:19]} {[%emt
00:09:20]} 6. Qd2 {[%clk 01:32:26]} {[%emt 00:00:21]} Nbd7 {[%clk 01:22:33]}
{[%emt 00:01:16]} 7. f3 {[%clk 01:32:05]} {[%emt 00:00:50]} h5 {[%clk
01:17:34]} {[%emt 00:05:29]} 8. h4 {[%clk 01:31:23]} {[%emt 00:01:12]} Bg7
{[%clk 01:16:10]} {[%emt 00:01:54]} 9. Nh3 {[%clk 01:31:19]} {[%emt 00:00:34]}
O-O {[%clk 01:13:31]} {[%emt 00:03:10]} 10. Ng5 {[%clk 01:28:59]} {[%emt
00:02:51]} Qc7 {[%clk 01:09:14]} {[%emt 00:04:46]} 11. Rd1 {[%clk 01:26:31]}
{[%emt 00:02:58]} Nb6 {[%clk 01:00:53]} {[%emt 00:08:51]} 12. Be2 {[%clk
01:21:07]} {[%emt 00:05:54]} Re8 {[%clk 00:52:44]} {[%emt 00:08:39]} 13. O-O
{[%clk 01:18:51]} {[%emt 00:02:45]} e5 {[%clk 00:50:50]} {[%emt 00:02:25]} 14.
b3 {[%clk 01:14:36]} {[%emt 00:04:46]} exd4 {[%clk 00:43:38]} {[%emt 00:07:42]}
15. Bxd4 {[%clk 01:14:48]} {[%emt 00:00:17]} d5 {[%clk 00:43:07]} {[%emt
00:01:01]} 16. Rfe1 {[%clk 01:02:37]} {[%emt 00:12:41]} dxe4 {[%clk 00:36:42]}
{[%emt 00:06:55]} 17. Ncxe4 {[%clk 01:02:25]} {[%emt 00:00:41]} Nxe4 {[%clk
00:35:39]} {[%emt 00:01:34]} 18. Nxe4 {[%clk 01:02:45]} {[%emt 00:00:09]} Rd8
{[%clk 00:29:36]} {[%emt 00:06:34]} 19. Qc3 {[%clk 01:00:00]} {[%emt 00:03:15]}
Nd5 {[%clk 00:28:22]} {[%emt 00:01:45]} 20. Qb2 {[%clk 01:00:02]} {[%emt
00:00:27]} Bxd4+ {[%clk 00:26:44]} {[%emt 00:02:08]} 21. Qxd4 {[%clk 00:58:13]}
{[%emt 00:02:19]} Bf5 {[%clk 00:25:51]} {[%emt 00:01:23]} 22. Bc4 {[%clk
00:55:26]} {[%emt 00:03:17]} Bxe4 {[%clk 00:22:53]} {[%emt 00:03:28]} 23. Qxe4
{[%clk 00:55:48]} {[%emt 00:00:08]} Qg3 {[%clk 00:19:28]} {[%emt 00:03:56]} 24.
Rd2 {[%clk 00:42:18]} {[%emt 00:14:02]} Rd7 {[%clk 00:14:43]} {[%emt 00:05:14]}
25. Bxd5 {[%clk 00:39:12]} {[%emt 00:03:36]} cxd5 {[%clk 00:14:27]} {[%emt
00:00:46]} 26. Qe5 {[%clk 00:39:27]} {[%emt 00:00:12]} Qxh4 {[%clk 00:14:16]}
{[%emt 00:00:45]} 27. Red1 {[%clk 00:39:15]} {[%emt 00:00:42]} Re7 {[%clk
00:09:21]} {[%emt 00:05:25]} 28. Qxd5 {[%clk 00:39:40]} {[%emt 00:00:05]} Re1+
{[%clk 00:09:43]} {[%emt 00:00:08]} 29. Rxe1 {[%clk 00:40:06]} {[%emt
00:00:04]} Qxe1+ {[%clk 00:10:12]} 30. Kh2 {[%clk 00:40:29]} {[%emt 00:00:06]}
Qh4+ {[%clk 00:10:27]} {[%emt 00:00:15]} 31. Kg1 {[%clk 00:40:54]} {[%emt
00:00:05]} Qe1+ {[%clk 00:09:22]} {[%emt 00:01:35]} 32. Kh2 {[%clk 00:41:20]}
{[%emt 00:00:05]} Qh4+ {[%clk 00:09:22]} {[%emt 00:00:29]} 33. Kg1 {[%clk
00:41:46]} {[%emt 00:00:04]} Qe1+ {[%clk 00:08:13]} {[%emt 00:01:39]} 1/2-1/2

[Event "NJSK 2026 Jeugd C"]
[Site "Helmond, Netherlands"]
[Date "2026.05.01"]
[Round "9.9"]
[White "Okita, Ryoga"]
[Black "Ozbek, Ahmet Naim"]
[Result "0-1"]
[TimeControl "90min/40moves + 30sec/move"]
[WhiteTitle "-"]
[BlackTitle "-"]
[WhiteFideId "1090666"]
[BlackFideId "40101975"]
[WhiteElo "1812"]
[BlackElo "1869"]

1. e4 {[%clk 01:30:55]} {[%emt 00:00:04]} e5 {[%clk 01:30:11]} {[%emt
00:00:50]} 2. Nf3 {[%clk 01:30:54]} {[%emt 00:00:30]} Nc6 {[%clk 01:30:34]}
{[%emt 00:00:05]} 3. d4 {[%clk 01:31:22]} {[%emt 00:00:05]} exd4 {[%clk
01:31:00]} {[%emt 00:00:04]} 4. Nxd4 {[%clk 01:31:50]} {[%emt 00:00:02]} Nf6
{[%clk 01:31:23]} {[%emt 00:00:06]} 5. Nxc6 {[%clk 01:32:14]} {[%emt 00:00:06]}
bxc6 {[%clk 01:31:49]} {[%emt 00:00:04]} 6. Qe2 {[%clk 01:32:37]} {[%emt
00:00:07]} Rb8 {[%clk 01:32:09]} {[%emt 00:00:10]} 7. e5 {[%clk 01:32:42]}
{[%emt 00:00:25]} Nd5 {[%clk 01:32:28]} {[%emt 00:00:10]} 8. c4 {[%clk
01:33:10]} {[%emt 00:00:03]} Bb4+ {[%clk 01:32:50]} {[%emt 00:00:08]} 9. Bd2
{[%clk 01:32:25]} {[%emt 00:01:15]} Nf4 {[%clk 01:27:37]} {[%emt 00:05:44]} 10.
Qe3 {[%clk 01:26:33]} {[%emt 00:06:21]} Ne6 {[%clk 01:27:40]} {[%emt 00:00:27]}
11. Bxb4 {[%clk 01:23:31]} {[%emt 00:03:32]} Rxb4 {[%clk 01:28:02]} {[%emt
00:00:08]} 12. Qa3 {[%clk 01:23:42]} {[%emt 00:00:19]} Qe7 {[%clk 01:24:02]}
{[%emt 00:04:30]} 13. Bd3 {[%clk 01:19:41]} {[%emt 00:04:30]} Nf4 {[%clk
01:16:12]} {[%emt 00:08:21]} 14. O-O {[%clk 01:18:58]} {[%emt 00:01:13]} O-O
{[%clk 01:12:26]} {[%emt 00:04:16]} 15. Bc2 {[%clk 01:14:09]} {[%emt 00:05:19]}
Qg5 {[%clk 01:08:28]} {[%emt 00:04:28]} 16. g3 {[%clk 01:10:46]} {[%emt
00:03:53]} Rxc4 {[%clk 01:05:45]} {[%emt 00:03:13]} 17. Nc3 {[%clk 01:08:03]}
{[%emt 00:03:13]} c5 {[%clk 00:55:14]} {[%emt 00:11:02]} 18. Kh1 {[%clk
01:06:26]} {[%emt 00:02:06]} Bb7+ {[%clk 00:49:22]} {[%emt 00:06:22]} 19. f3
{[%clk 01:04:59]} {[%emt 00:01:57]} Nh5 {[%clk 00:42:27]} {[%emt 00:07:24]} 20.
Be4 {[%emt 00:08:17]} Bxe4 {[%clk 00:36:44]} {[%emt 00:02:13]} 21. Nxe4 {[%clk
01:01:09]} {[%emt 00:00:33]} Qxe5 {[%clk 00:36:20]} {[%emt 00:00:54]} 22. Qxa7
{[%clk 00:59:40]} {[%emt 00:01:59]} d5 {[%clk 00:32:29]} {[%emt 00:04:22]} 23.
Nd2 {[%clk 00:59:19]} {[%emt 00:00:51]} Rc2 {[%clk 00:30:45]} {[%emt 00:02:14]}
24. Qa5 {[%clk 00:53:40]} {[%emt 00:06:09]} Qe2 {[%clk 00:27:08]} {[%emt
00:04:07]} 25. Rad1 {[%clk 00:51:26]} {[%emt 00:02:44]} Rxb2 {[%clk 00:26:37]}
{[%emt 00:01:01]} 26. f4 {[%clk 00:37:42]} {[%emt 00:14:15]} Nf6 {[%clk
00:24:13]} {[%emt 00:02:54]} 27. Rfe1 {[%clk 00:37:05]} {[%emt 00:01:07]} Qd3
{[%clk 00:23:16]} {[%emt 00:01:28]} 0-1

[Event "NJSK 2026 Jeugd C"]
[Site "Helmond, Netherlands"]
[Date "2026.05.01"]
[Round "9.10"]
[White "Suthan, Aadvik"]
[Black "Huang, Vincent"]
[Result "0-1"]
[TimeControl "90min/40moves + 30sec/move"]
[WhiteTitle "-"]
[BlackTitle "-"]
[WhiteFideId "1095765"]
[BlackFideId "40104184"]
[WhiteElo "1822"]
[BlackElo "1855"]

1. e4 {[%clk 01:30:59]} {[%emt 00:00:01]} c5 {[%clk 01:30:56]} {[%emt
00:00:04]} 2. Nf3 {[%clk 01:31:16]} {[%emt 00:00:12]} d6 {[%clk 01:31:22]}
{[%emt 00:00:06]} 3. d4 {[%clk 01:31:29]} {[%emt 00:00:17]} cxd4 {[%clk
01:31:45]} {[%emt 00:00:07]} 4. Nxd4 {[%clk 01:31:49]} {[%emt 00:00:09]} Nf6
{[%clk 01:32:10]} {[%emt 00:00:05]} 5. Nc3 {[%clk 01:32:00]} {[%emt 00:00:19]}
g6 {[%clk 01:32:30]} {[%emt 00:00:10]} 6. Be3 {[%clk 01:32:24]} {[%emt
00:00:06]} Bg7 {[%clk 01:32:42]} {[%emt 00:00:18]} 7. f3 {[%clk 01:32:36]}
{[%emt 00:00:18]} O-O {[%clk 01:32:58]} {[%emt 00:00:14]} 8. g4 {[%clk
01:33:02]} {[%emt 00:00:04]} Nc6 {[%clk 01:31:17]} {[%emt 00:02:11]} 9. h4
{[%clk 01:31:17]} {[%emt 00:02:14]} h5 {[%clk 01:29:41]} {[%emt 00:02:06]} 10.
g5 {[%clk 01:31:13]} {[%emt 00:00:34]} Nd7 {[%clk 01:27:53]} {[%emt 00:02:19]}
11. Qd2 {[%clk 01:29:41]} {[%emt 00:02:02]} Nxd4 {[%clk 01:24:24]} {[%emt
00:04:00]} 12. Bxd4 {[%clk 01:30:02]} {[%emt 00:00:09]} Bxd4 {[%clk 01:24:19]}
{[%emt 00:00:34]} 13. Qxd4 {[%clk 01:30:19]} {[%emt 00:00:13]} Qb6 {[%clk
01:24:18]} {[%emt 00:00:31]} 14. Qxb6 {[%clk 01:30:29]} {[%emt 00:00:20]} Nxb6
{[%clk 01:24:43]} {[%emt 00:00:06]} 15. O-O-O {[%clk 01:30:47]} {[%emt
00:00:11]} Rd8 {[%clk 01:22:40]} {[%emt 00:02:32]} 16. f4 {[%clk 01:29:53]}
{[%emt 00:01:25]} Bg4 {[%clk 01:22:07]} {[%emt 00:01:03]} 17. Be2 {[%clk
01:30:04]} {[%emt 00:00:18]} Bxe2 {[%clk 01:22:23]} {[%emt 00:00:16]} 18. Nxe2
{[%clk 01:30:26]} {[%emt 00:00:07]} d5 {[%clk 01:21:32]} {[%emt 00:01:22]} 19.
e5 {[%clk 01:28:46]} {[%emt 00:02:09]} e6 {[%clk 01:21:36]} {[%emt 00:00:27]}
20. Nd4 {[%clk 01:28:53]} {[%emt 00:00:22]} Rac8 {[%clk 01:18:28]} {[%emt
00:03:38]} 21. b3 {[%clk 01:26:11]} {[%emt 00:03:10]} a6 {[%clk 01:17:59]}
{[%emt 00:01:01]} 22. Kb2 {[%clk 01:26:30]} {[%emt 00:00:10]} Rc7 {[%clk
01:17:40]} {[%emt 00:00:49]} 23. Rhe1 {[%clk 01:11:39]} {[%emt 00:15:22]} Rdc8
{[%clk 01:16:34]} {[%emt 00:01:36]} 24. Rd2 {[%clk 01:04:08]} {[%emt 00:08:00]}
Nd7 {[%clk 01:13:53]} {[%emt 00:03:12]} 25. Ne2 {[%clk 01:02:47]} {[%emt
00:01:51]} Nb8 {[%clk 01:10:07]} {[%emt 00:04:16]} 26. Red1 {[%clk 01:01:21]}
{[%emt 00:01:54]} Nc6 {[%clk 01:09:44]} {[%emt 00:00:55]} 27. a3 {[%clk
01:00:52]} {[%emt 00:00:59]} b5 {[%clk 01:07:05]} {[%emt 00:03:09]} 28. Rc1
{[%clk 00:42:41]} {[%emt 00:18:39]} Na5 {[%clk 01:03:18]} {[%emt 00:04:19]} 29.
Nd4 {[%clk 00:41:33]} {[%emt 00:01:38]} Rb7 {[%clk 01:02:09]} {[%emt 00:01:39]}
30. Rd3 {[%clk 00:34:22]} {[%emt 00:07:40]} Rbc7 {[%clk 00:58:45]} {[%emt
00:03:54]} 31. Re1 {[%clk 00:30:06]} {[%emt 00:04:46]} Kf8 {[%clk 00:54:43]}
{[%emt 00:04:33]} 32. Ree3 {[%clk 00:26:15]} {[%emt 00:04:22]} Ke7 {[%clk
00:52:15]} {[%emt 00:02:58]} 33. Rc3 {[%clk 00:22:38]} {[%emt 00:04:06]} Kd7
{[%clk 00:51:18]} {[%emt 00:01:28]} 34. Rxc7+ {[%clk 00:21:36]} {[%emt
00:01:33]} Rxc7 {[%clk 00:51:40]} {[%emt 00:00:08]} 35. Rc3 {[%clk 00:21:53]}
{[%emt 00:00:13]} Nc6 {[%clk 00:49:33]} {[%emt 00:02:38]} 36. Nxc6 {[%clk
00:21:29]} {[%emt 00:00:53]} Rxc6 {[%clk 00:49:59]} {[%emt 00:00:04]} 37. Rd3
{[%clk 00:20:43]} {[%emt 00:01:16]} Rc5 {[%clk 00:47:24]} {[%emt 00:03:05]} 38.
Rd4 {[%clk 00:19:10]} {[%emt 00:02:00]} Kc6 {[%clk 00:39:18]} {[%emt 00:08:38]}
39. a4 {[%clk 00:18:09]} {[%emt 00:01:32]} Kb6 {[%clk 00:35:50]} {[%emt
00:03:57]} 40. c3 {[%clk 00:14:13]} {[%emt 00:04:25]} Rc7 {[%clk 00:32:44]}
{[%emt 00:03:38]} 41. axb5 {[%clk 00:12:55]} {[%emt 00:01:48]} axb5 {[%clk
00:32:43]} {[%emt 00:00:32]} 42. Rd1 {[%clk 00:13:01]} {[%emt 00:00:23]} Ra7
{[%clk 00:31:24]} {[%emt 00:01:49]} 43. Rd4 {[%clk 00:09:06]} {[%emt 00:04:24]}
Kc5 {[%clk 00:30:27]} {[%emt 00:01:28]} 44. Rd1 {[%clk 00:05:38]} {[%emt
00:03:57]} Ra6 {[%clk 00:27:36]} {[%emt 00:03:23]} 45. Re1 {[%clk 00:04:05]}
{[%emt 00:02:02]} Ra7 {[%clk 00:26:08]} {[%emt 00:01:58]} 46. Re3 {[%clk
00:02:40]} {[%emt 00:01:55]} Ra8 {[%clk 00:21:55]} {[%emt 00:04:44]} 47. Rd3
{[%clk 00:01:51]} {[%emt 00:01:16]} Ra7 {[%clk 00:21:30]} {[%emt 00:00:58]} 48.
b4+ {[%clk 00:02:09]} {[%emt 00:00:12]} Kb6 {[%clk 00:21:18]} {[%emt 00:00:41]}
49. Rd1 {[%clk 00:02:11]} {[%emt 00:00:27]} Kc6 {[%clk 00:21:05]} {[%emt
00:00:44]} 50. Rd2 {[%clk 00:01:26]} {[%emt 00:01:15]} Rd7 {[%clk 00:20:21]}
{[%emt 00:01:14]} 51. Kc2 {[%clk 00:01:31]} {[%emt 00:00:25]} Ra7 {[%clk
00:20:06]} {[%emt 00:00:45]} 52. Kd3 {[%clk 00:01:31]} {[%emt 00:00:30]} Ra1
{[%clk 00:19:34]} {[%emt 00:01:02]} 53. Rh2 {[%clk 00:01:45]} {[%emt 00:00:16]}
Rg1 {[%clk 00:18:28]} {[%emt 00:01:36]} 54. Ke3 {[%clk 00:01:31]} {[%emt
00:02:06]} Rg3+ {[%clk 00:18:35]} {[%emt 00:00:21]} 55. Kd2 {[%clk 00:01:34]}
{[%emt 00:00:28]} Rf3 {[%clk 00:18:47]} {[%emt 00:00:18]} 56. Ke2 {[%clk
00:01:27]} {[%emt 00:00:38]} Rxf4 {[%clk 00:18:51]} {[%emt 00:00:25]} 57. Kd3
{[%clk 00:01:51]} {[%emt 00:00:06]} Rf3+ {[%clk 00:17:35]} {[%emt 00:01:45]} 58.
Kd4 {[%clk 00:02:10]} {[%emt 00:00:13]} Rf1 {[%clk 00:17:29]} {[%emt 00:00:34]}
59. Kd3 {[%clk 00:02:12]} {[%emt 00:00:29]} Rf4 {[%clk 00:17:01]} {[%emt
00:00:56]} 60. Rh3 {[%clk 00:02:03]} {[%emt 00:00:41]} Kd7 {[%clk 00:17:16]}
{[%emt 00:00:16]} 61. Rh2 {[%clk 00:02:26]} {[%emt 00:00:07]} Re4 {[%clk
00:16:26]} {[%emt 00:01:18]} 62. Rh3 {[%clk 00:02:40]} {[%emt 00:00:17]} Rxe5
{[%clk 00:16:38]} {[%emt 00:00:19]} 63. Rh2 {[%clk 00:02:53]} {[%emt 00:00:17]}
Re4 {[%clk 00:16:42]} {[%emt 00:00:26]} 64. Rh3 {[%clk 00:02:12]} {[%emt
00:01:10]} Ke7 {[%clk 00:16:53]} {[%emt 00:00:19]} 65. Rh2 {[%clk 00:02:37]}
{[%emt 00:00:05]} f6 {[%clk 00:16:36]} {[%emt 00:00:47]} 66. gxf6+ {[%clk
00:02:11]} {[%emt 00:00:56]} Kxf6 {[%clk 00:17:02]} {[%emt 00:00:04]} 67. Rf2+
{[%clk 00:02:25]} {[%emt 00:00:16]} Ke5 {[%clk 00:16:48]} {[%emt 00:00:44]} 68.
Rg2 {[%clk 00:02:47]} {[%emt 00:00:08]} Rg4 {[%clk 00:16:38]} {[%emt 00:00:39]}
69. Re2+ {[%clk 00:03:01]} {[%emt 00:00:17]} Kd6 {[%clk 00:16:08]} {[%emt
00:01:01]} 70. Rh2 {[%clk 00:03:17]} {[%emt 00:00:13]} e5 {[%clk 00:16:20]}
{[%emt 00:00:18]} 71. Rh3 {[%clk 00:03:07]} {[%emt 00:00:40]} Ke6 {[%clk
00:15:43]} {[%emt 00:01:07]} 72. Rh2 {[%clk 00:02:58]} {[%emt 00:00:39]} Kf5
{[%clk 00:15:43]} {[%emt 00:00:30]} 73. Rf2+ {[%clk 00:03:19]} {[%emt
00:00:09]} Rf4 {[%clk 00:16:07]} {[%emt 00:00:07]} 74. Rh2 {[%clk 00:03:37]}
{[%emt 00:00:11]} g5 {[%clk 00:14:12]} {[%emt 00:02:25]} 75. hxg5 {[%clk
00:03:39]} {[%emt 00:00:28]} Kxg5 {[%clk 00:14:37]} {[%emt 00:00:05]} 76. Rg2+
{[%clk 00:03:34]} {[%emt 00:00:35]} Kf5 {[%clk 00:14:47]} {[%emt 00:00:20]} 77.
Ke3 {[%clk 00:03:54]} {[%emt 00:00:10]} d4+ {[%clk 00:14:04]} {[%emt 00:01:14]}
78. cxd4 {[%clk 00:04:14]} {[%emt 00:00:09]} Rxd4 {[%clk 00:14:21]} {[%emt
00:00:13]} 79. Rf2+ {[%clk 00:04:30]} {[%emt 00:00:15]} Rf4 {[%clk 00:14:30]}
{[%emt 00:00:20]} 80. Rh2 {[%clk 00:04:52]} {[%emt 00:00:08]} h4 {[%clk
00:14:53]} {[%emt 00:00:07]} 81. Rb2 {[%clk 00:05:10]} {[%emt 00:00:11]} h3
{[%clk 00:15:08]} {[%emt 00:00:15]} 82. Kd3 {[%clk 00:05:14]} {[%emt 00:00:27]}
Kg4 {[%clk 00:15:13]} {[%emt 00:00:25]} 83. Rb1 {[%clk 00:05:33]} {[%emt
00:00:21]} h2 {[%clk 00:15:33]} 84. Ke3 {[%clk 00:05:50]} {[%emt 00:00:12]} Kg3
{[%clk 00:15:38]} {[%emt 00:00:26]} 85. Ra1 {[%clk 00:06:09]} {[%emt 00:00:06]}
Rh4 {[%clk 00:14:56]} {[%emt 00:01:15]} 86. Rh1 {[%clk 00:05:45]} {[%emt
00:00:55]} Kg2 {[%clk 00:15:20]} {[%emt 00:00:06]} 87. Ra1 {[%clk 00:06:06]}
{[%emt 00:00:09]} h1=Q {[%clk 00:15:39]} {[%emt 00:00:11]} 88. Rxh1 {[%clk
00:06:25]} Kxh1 {[%clk 00:16:04]} {[%emt 00:00:17]} 89. Kd3 {[%clk 00:06:47]}
{[%emt 00:00:07]} Rxb4 {[%clk 00:16:23]} {[%emt 00:00:11]} 90. Kc3 {[%clk
00:07:12]} {[%emt 00:00:05]} Rd4 {[%clk 00:16:43]} {[%emt 00:00:08]} 91. Kb3
{[%clk 00:07:38]} {[%emt 00:00:06]} e4 {[%clk 00:17:04]} {[%emt 00:00:09]} 92.
Kc3 {[%clk 00:08:04]} {[%emt 00:00:04]} Rd3+ {[%clk 00:17:25]} {[%emt
00:00:08]} 93. Kb4 {[%clk 00:08:29]} {[%emt 00:00:05]} e3 {[%clk 00:17:48]}
{[%emt 00:00:08]} 94. Kxb5 {[%clk 00:08:52]} {[%emt 00:00:07]} e2 {[%clk
00:18:12]} {[%emt 00:00:05]} 95. Kc4 {[%clk 00:09:17]} {[%emt 00:00:06]} Rd8
{[%clk 00:18:28]} {[%emt 00:00:13]} 96. Kc5 {[%clk 00:09:37]} {[%emt 00:00:11]}
e1=Q {[%clk 00:18:49]} {[%emt 00:00:08]} 97. Kc6 {[%clk 00:09:55]} {[%emt
00:00:12]} Qc3+ {[%clk 00:19:08]} {[%emt 00:00:10]} 98. Kb6 {[%clk 00:10:13]}
{[%emt 00:00:14]} Rb8+ {[%clk 00:19:29]} {[%emt 00:00:08]} 99. Ka7 {[%clk
00:10:37]} {[%emt 00:00:06]} Qc7+ {[%clk 00:19:52]} {[%emt 00:00:07]} 100. Ka6
{[%clk 00:11:01]} {[%emt 00:00:07]} Qb6# {[%clk 00:20:18]} {[%emt 00:00:03]}
0-1